fUST/lending_fUST_20250531
["ID","MTS","AMOUNT","RATE_DAILY","PERIOD"]
[363281572,1748656783901,-500.0,0.00016438,2]
[363281573,1748656783927,-430.0,0.00016438,2]
[363281574,1748656783951,-430.0,0.00016438,2]
[363281575,1748656783975,-527.01,0.00016438,2]
[363281576,1748656783998,-430.0,0.00016438,2]
[363281577,1748656784022,-699.98,0.00016438,2]
[363281578,1748656784045,-430.0,0.00016438,2]
[363281579,1748656784068,-430.0,0.00016438,2]
[363281580,1748656784092,-430.0,0.00016438,2]
[363281581,1748656784118,-430.0,0.00016438,2]
[363281582,1748656784142,-430.0,0.00016438,2]
[363281583,1748656784166,-430.0,0.00016438,2]
[363281584,1748656784191,-430.0,0.00016438,2]
[363281585,1748656784215,-430.0,0.00016438,2]
[363281586,1748656784252,-430.0,0.00016438,2]
[363281587,1748656784279,-430.0,0.00016438,2]
[363281588,1748656784306,-1291.64,0.00016438,2]
[363281589,1748656784333,-505.58,0.00016438,2]
[363281590,1748656784359,-430.0,0.00016438,2]
[363281591,1748656784384,-430.0,0.00016438,2]
[363281592,1748656784408,-440.54257895,0.00016438,2]
[363281593,1748656784433,-430.0,0.00016438,2]
[363281594,1748656784460,-430.0,0.00016438,2]
[363281595,1748656784486,-430.0,0.00016438,2]
[363281596,1748656784511,-447.70940171,0.00016438,2]
[363281597,1748656784536,-430.0,0.00016438,2]
[363281598,1748656784561,-430.0,0.00016438,2]
[363281599,1748656784586,-733.73,0.00016438,2]
[363281600,1748656784614,-1217.0,0.00016438,2]
[363281601,1748656784640,-1408.16,0.00016438,2]
[363281602,1748656784664,-430.0,0.00016438,2]
[363281603,1748656784689,-430.0,0.00016438,2]
[363281604,1748656784713,-430.0,0.00016438,2]
[363281605,1748656784737,-430.0,0.00016438,2]
[363281606,1748656784760,-500.0,0.00016438,2]
[363281607,1748656784784,-430.0,0.00016438,2]
[363281608,1748656784807,-171.82472882,0.00016438,2]
[363281609,1748656784829,-430.0,0.00016438,2]
[363281610,1748656784855,-430.0,0.00016438,2]
[363281611,1748656784880,-430.0,0.00016438,2]
[363281612,1748656784904,-442.51559479,0.00016438,2]
[363281613,1748656784927,-504.87134704,0.00016709,2]
[363281614,1748656784949,-160.0,0.00016711,2]
[363281615,1748656784973,-430.0,0.00016712,2]
[363281616,1748656784997,-411.94184362,0.00016712,2]
[363281617,1748656785020,-430.0,0.00016712,2]
[363281618,1748656785042,-430.0,0.00016712,2]
[363281619,1748656785066,-430.0,0.00016712,2]
[363281620,1748656785090,-430.0,0.00016712,2]
[363281621,1748656785122,-430.0,0.00016712,2]
[363281622,1748656785147,-430.0,0.00016712,2]
[363281623,1748656785171,-430.0,0.00016712,2]
[363281624,1748656785198,-1030.6,0.00016712,2]
[363281625,1748656785222,-541.49,0.00016712,2]
[363281626,1748656785246,-430.0,0.00016712,2]
[363281627,1748656785273,-430.0,0.00016712,2]
[363281628,1748656785298,-949.54,0.00016712,2]
[363281629,1748656785323,-430.0,0.00016712,2]
[363281630,1748656785350,-430.0,0.00016712,2]
[363281631,1748656785374,-430.0,0.00016712,2]
[363281632,1748656785397,-430.0,0.00016712,2]
[363281633,1748656785421,-443.63,0.00016712,2]
[363281634,1748656785450,-430.0,0.00016712,2]
[363281635,1748656785474,-430.0,0.00016712,2]
[363281636,1748656785499,-430.0,0.00016712,2]
[363281637,1748656785523,-430.0,0.00016712,2]
[363281638,1748656785547,-430.0,0.00016712,2]
[363281639,1748656785571,-430.0,0.00016712,2]
[363281640,1748656785597,-430.0,0.00016712,2]
[363281641,1748656785621,-430.0,0.00016712,2]
[363281642,1748656785645,-699.98,0.00016712,2]
[363281643,1748656785668,-151.0,0.00016712,2]
[363281644,1748656785692,-151.0,0.00016712,2]
[363281645,1748656785715,-152.66304337,0.00016712,2]
[363281646,1748656785737,-151.78396224,0.00016712,2]
[363281647,1748656785760,-153.2803503,0.00016712,2]
[363281648,1748656785783,-430.0,0.00016712,2]
[363281649,1748656785807,-443.56161071,0.00016712,2]
[363281650,1748656785830,-430.0,0.00016712,2]
[363281651,1748656785854,-430.0,0.00016712,2]
[363281652,1748656785877,-311.56,0.00016712,2]
[363281653,1748656785900,-430.0,0.00016712,2]
[363281654,1748656785923,-430.0,0.00016712,2]
[363281655,1748656785946,-1291.64,0.00016712,2]
[363281656,1748656786120,-505.58,0.00016712,2]
[363281657,1748656786145,-430.0,0.00016712,2]
[363281658,1748656786169,-430.0,0.00016712,2]
[363281659,1748656786197,-430.0,0.00016712,2]
[363281660,1748656786221,-430.0,0.00016712,2]
[363281661,1748656786246,-430.0,0.00016712,2]
[363281662,1748656786270,-430.0,0.00016712,2]
[363281663,1748656786293,-733.73,0.00016712,2]
[363281664,1748656786319,-1217.0,0.00016712,2]
[363281665,1748656786343,-1408.16,0.00016712,2]
[363281666,1748656786369,-430.0,0.00016712,2]
[363281667,1748656786393,-430.0,0.00016712,2]
[363281668,1748656786418,-430.0,0.00016712,2]
[363281669,1748656786441,-430.0,0.00016712,2]
[363281670,1748656786466,-430.0,0.00016712,2]
[363281671,1748656786490,-430.0,0.00016712,2]
[363281672,1748656786514,-430.0,0.00016712,2]
[363281673,1748656786537,-151.0,0.00016739,2]
[363281674,1748656786559,-151.0,0.00016739,2]
[363281675,1748656786581,-247.55238825,0.00016767,2]
[363281676,1748656786604,-151.0,0.00016767,2]
[363281677,1748656786626,-1300.0,0.00016768,2]
[363281678,1748656786649,-717.51664456,0.00016788,2]
[363281679,1748656786672,-151.0,0.00016794,2]
[363281680,1748656786694,-190.78935039,0.00016822,2]
[363281681,1748656786717,-215.11533707,0.00016985,2]
[363281682,1748656786740,-430.0,0.00016985,2]
[363281683,1748656786764,-430.0,0.00016985,2]
[363281684,1748656786786,-430.0,0.00016985,2]
[363281685,1748656786809,-430.0,0.00016985,2]
[363281686,1748656786831,-430.0,0.00016985,2]
[363281687,1748656786854,-430.0,0.00016985,2]
[363281688,1748656786877,-430.0,0.00016985,2]
[363281689,1748656786900,-430.0,0.00016985,2]
[363281690,1748656786925,-1139.47,0.00016985,2]
[363281691,1748656786948,-430.0,0.00016985,2]
[363281692,1748656786970,-578.19172679,0.00016985,2]
[363281693,1748656786994,-529.04,0.00016985,2]
[363281694,1748656787018,-500.0,0.00016985,2]
[363281695,1748656787040,-408.63298623,0.00016985,2]
[363281696,1748656787067,-500.0,0.00016985,2]
[363281697,1748656787094,-500.0,0.00016985,2]
[363281698,1748656787120,-500.0,0.00016985,2]
[363281699,1748656787145,-500.0,0.00016985,2]
[363281700,1748656787170,-500.0,0.00016985,2]
[363281701,1748656787197,-500.0,0.00016985,2]
[363281702,1748656787221,-500.0,0.00016985,2]
[363281703,1748656787246,-500.0,0.00016985,2]
[363281704,1748656787270,-500.0,0.00016985,2]
[363281705,1748656787295,-436.34685645,0.00016985,2]
[363281706,1748656787319,-500.0,0.00016985,2]
[363281707,1748656787345,-500.0,0.00016985,2]
[363281708,1748656787371,-205.44279952,0.00016985,2]
[363281709,1748656787394,-576.22869663,0.00016985,2]
[363281710,1748656787418,-430.0,0.00016985,2]
[363281711,1748656787441,-430.0,0.00016986,2]
[363281712,1748656787464,-430.0,0.00016986,2]
[363281713,1748656787487,-430.0,0.00016986,2]
[363281714,1748656787511,-430.0,0.00016986,2]
[363281715,1748656787534,-430.0,0.00016986,2]
[363281716,1748656787558,-430.0,0.00016986,2]
[363281717,1748656787581,-430.0,0.00016986,2]
[363281718,1748656787607,-430.0,0.00016986,2]
[363281719,1748656787632,-1030.6,0.00016986,2]
[363281720,1748656787655,-541.49,0.00016986,2]
[363281721,1748656787677,-430.0,0.00016986,2]
[363281722,1748656787701,-430.0,0.00016986,2]
[363281723,1748656787725,-949.54,0.00016986,2]
[363281724,1748656787750,-430.0,0.00016986,2]
[363281725,1748656787775,-430.0,0.00016986,2]
[363281726,1748656787799,-459.46373853,0.00016986,2]
[363281727,1748656787823,-430.0,0.00016986,2]
[363281728,1748656787851,-443.63,0.00016986,2]
[363281729,1748656787875,-430.0,0.00016986,2]
[363281730,1748656787899,-430.0,0.00016986,2]
[363281731,1748656787923,-430.0,0.00016986,2]
[363281732,1748656787948,-430.0,0.00016986,2]
[363281733,1748656787970,-430.0,0.00016986,2]
[363281734,1748656787993,-430.0,0.00016986,2]
[363281735,1748656788017,-430.0,0.00016986,2]
[363281736,1748656788042,-699.98,0.00016986,2]
[363281737,1748656788067,-430.0,0.00016986,2]
[363281738,1748656788091,-430.0,0.00016986,2]
[363281739,1748656788121,-430.0,0.00016986,2]
[363281740,1748656788147,-1291.64,0.00016986,2]
[363281741,1748656788172,-505.58,0.00016986,2]
[363281742,1748656788199,-430.0,0.00016986,2]
[363281743,1748656788224,-430.0,0.00016986,2]
[363281744,1748656788248,-199.35,0.00016986,2]
[363281745,1748656788274,-430.0,0.00016986,2]
[363281746,1748656788299,-430.0,0.00016986,2]
[363281747,1748656788323,-430.0,0.00016986,2]
[363281748,1748656788352,-733.73,0.00016986,2]
[363281749,1748656788379,-1217.0,0.00016986,2]
[363281750,1748656788404,-1408.16,0.00016986,2]
[363281751,1748656788552,-430.0,0.00016986,2]
[363281752,1748656788579,-430.0,0.00016986,2]
[363281753,1748656788610,-430.0,0.00016986,2]
[363281754,1748656788637,-430.0,0.00016986,2]
[363281755,1748656788661,-445.99,0.00016986,2]
[363281756,1748656788685,-430.0,0.00016986,2]
[363281757,1748656788709,-430.0,0.00016986,2]
[363281758,1748656788733,-191.29469644,0.00017259,2]
[363281759,1748656788757,-430.0,0.00017259,2]
[363281760,1748656788781,-430.0,0.00017259,2]
[363281761,1748656788806,-430.0,0.00017259,2]
[363281762,1748656788832,-1139.47,0.00017259,2]
[363281763,1748656788860,-430.0,0.00017259,2]
[363281764,1748656788884,-430.0,0.00017259,2]
[363281765,1748656788909,-430.0,0.0001726,2]
[363281766,1748656788933,-430.0,0.0001726,2]
[363281767,1748656788957,-430.0,0.0001726,2]
[363281768,1748656788982,-448.41570708,0.0001726,2]
[363281769,1748656789006,-430.0,0.0001726,2]
[363281770,1748656789030,-430.0,0.0001726,2]
[363281771,1748656789053,-430.0,0.0001726,2]
[363281772,1748656789076,-430.0,0.0001726,2]
[363281773,1748656789102,-1030.6,0.0001726,2]
[363281774,1748656789127,-541.49,0.0001726,2]
[363281775,1748656789152,-430.0,0.0001726,2]
[363281776,1748656789178,-430.0,0.0001726,2]
[363281777,1748656789204,-949.54,0.0001726,2]
[363281778,1748656789228,-430.0,0.0001726,2]
[363281779,1748656789253,-430.0,0.0001726,2]
[363281780,1748656789278,-430.0,0.0001726,2]
[363281781,1748656789303,-443.63,0.0001726,2]
[363281782,1748656789327,-430.0,0.0001726,2]
[363281783,1748656789355,-430.0,0.0001726,2]
[363281784,1748656789381,-430.0,0.0001726,2]
[363281785,1748656789406,-430.0,0.0001726,2]
[363281786,1748656789431,-430.0,0.0001726,2]
[363281787,1748656789454,-430.0,0.0001726,2]
[363281788,1748656789478,-699.98,0.0001726,2]
[363281789,1748656789503,-430.0,0.0001726,2]
[363281790,1748656789527,-458.76050884,0.0001726,2]
[363281791,1748656789551,-1291.64,0.0001726,2]
[363281792,1748656789577,-505.58,0.0001726,2]
[363281793,1748656789603,-430.0,0.0001726,2]
[363281794,1748656789627,-430.0,0.0001726,2]
[363281795,1748656789651,-430.0,0.0001726,2]
[363281796,1748656789674,-430.0,0.0001726,2]
[363281797,1748656789697,-548.63539627,0.0001726,2]
[363281798,1748656789721,-733.73,0.0001726,2]
[363281799,1748656789746,-1217.0,0.0001726,2]
[363281800,1748656789770,-1408.16,0.0001726,2]
[363281801,1748656789793,-430.0,0.0001726,2]
[363281802,1748656789817,-430.0,0.0001726,2]
[363281803,1748656789841,-430.0,0.0001726,2]
[363281804,1748656789867,-430.0,0.0001726,2]
[363281805,1748656789891,-430.0,0.0001726,2]
[363281806,1748656789915,-430.0,0.0001726,2]
[363281807,1748656789938,-460.88240555,0.00017533,2]
[363281808,1748656789963,-1139.47,0.00017533,2]
[363281809,1748656789987,-430.0,0.00017533,2]
[363281810,1748656790011,-430.0,0.00017533,2]
[363281811,1748656790034,-430.0,0.00017534,2]
[363281812,1748656790057,-430.0,0.00017534,2]
[363281813,1748656790081,-430.0,0.00017534,2]
[363281814,1748656790108,-376.88847836,0.00017534,2]
[363281815,1748656790131,-430.0,0.00017534,2]
[363281816,1748656790156,-430.0,0.00017534,2]
[363281817,1748656790182,-1030.6,0.00017534,2]
[363281818,1748656790207,-541.49,0.00017534,2]
[363281819,1748656790231,-430.0,0.00017534,2]
[363281820,1748656790255,-430.0,0.00017534,2]
[363281821,1748656790280,-949.54,0.00017534,2]
[363281822,1748656790305,-352.01671489,0.00017534,2]
[363281823,1748656790330,-430.0,0.00017534,2]
[363281824,1748656790355,-430.0,0.00017534,2]
[363281825,1748656790380,-443.63,0.00017534,2]
[363281826,1748656790405,-430.0,0.00017534,2]
[363281827,1748656790442,-430.0,0.00017534,2]
[363281828,1748656790470,-471.64,0.00017534,2]
[363281829,1748656790496,-430.0,0.00017534,2]
[363281830,1748656790522,-430.0,0.00017534,2]
[363281831,1748656790549,-430.0,0.00017534,2]
[363281832,1748656790578,-699.98,0.00017534,2]
[363281833,1748656790606,-430.0,0.00017534,2]
[363281834,1748656790632,-1291.64,0.00017534,2]
[363281835,1748656790659,-505.58,0.00017534,2]
[363281836,1748656790684,-430.0,0.00017534,2]
[363281837,1748656790709,-430.0,0.00017534,2]
[363281838,1748656790735,-430.0,0.00017534,2]
[363281839,1748656790760,-430.0,0.00017534,2]
[363281840,1748656790785,-733.73,0.00017534,2]
[363281841,1748656790810,-1217.0,0.00017534,2]
[363281842,1748656790836,-1408.16,0.00017534,2]
[363281843,1748656790864,-430.0,0.00017534,2]
[363281844,1748656790889,-430.0,0.00017534,2]
[363281845,1748656791075,-430.0,0.00017534,2]
[363281846,1748656791101,-430.0,0.00017534,2]
[363281847,1748656791126,-430.0,0.00017534,2]
[363281848,1748656791152,-217.42265559,0.00017556,2]
[363281849,1748656791178,-12663.11115519,0.00017605,2]
[363281850,1748656791203,-212.7380601,0.00017605,2]
[363281851,1748656791226,-160.0,0.00017605,2]
[363281852,1748656791249,-842.5625,0.00017605,2]
[363281853,1748656791272,-423.39538199,0.00017605,2]
[363281854,1748656791295,-229.30959854,0.00017605,2]
[363281855,1748656791319,-160.0,0.00017605,2]
[363281856,1748656791342,-160.0,0.00017605,2]
[363281857,1748656791367,-160.0,0.00017605,2]
[363281858,1748656791390,-500.0,0.0001762,2]
[363281859,1748656791415,-500.0,0.00017664,2]
[363281860,1748656791438,-500.0,0.00017664,2]
[363281861,1748656791462,-500.0,0.00017664,2]
[363281862,1748656791486,-500.0,0.00017664,2]
[363281863,1748656791509,-504.67433144,0.000177,2]
[363281864,1748656791533,-500.0,0.000177,2]
[363281865,1748656791556,-502.55308274,0.000177,2]
[363281866,1748656791579,-500.0,0.000177,2]
[363281867,1748656791605,-500.0,0.0001773,2]
[363281868,1748656791628,-500.0,0.0001773,2]
[363281869,1748656791652,-500.0,0.00017763,2]
[363281870,1748656791677,-1139.47,0.00017807,2]
[363281871,1748656791701,-430.0,0.00017807,2]
[363281872,1748656791725,-430.0,0.00017807,2]
[363281873,1748656791748,-430.0,0.00017808,2]
[363281874,1748656791772,-430.0,0.00017808,2]
[363281875,1748656791796,-430.0,0.00017808,2]
[363281876,1748656791820,-430.0,0.00017808,2]
[363281877,1748656791844,-430.0,0.00017808,2]
[363281878,1748656791871,-1030.6,0.00017808,2]
[363281879,1748656791897,-541.49,0.00017808,2]
[363281880,1748656791922,-430.0,0.00017808,2]
[363281881,1748656791948,-430.0,0.00017808,2]
[363281882,1748656791973,-949.54,0.00017808,2]
[363281883,1748656792002,-430.0,0.00017808,2]
[363281884,1748656792026,-430.0,0.00017808,2]
[363281885,1748656792051,-443.63,0.00017808,2]
[363281886,1748656792075,-430.0,0.00017808,2]
[363281887,1748656792101,-430.0,0.00017808,2]
[363281888,1748656792126,-430.0,0.00017808,2]
[363281889,1748656792152,-430.0,0.00017808,2]
[363281890,1748656792177,-699.98,0.00017808,2]
[363281891,1748656792203,-430.0,0.00017808,2]
[363281892,1748656792229,-1291.64,0.00017808,2]
[363281893,1748656792254,-505.58,0.00017808,2]
[363281894,1748656792278,-423.40167688,0.00017808,2]
[363281895,1748656792302,-430.0,0.00017808,2]
[363281896,1748656792327,-430.0,0.00017808,2]
[363281897,1748656792351,-430.0,0.00017808,2]
[363281898,1748656792376,-733.73,0.00017808,2]
[363281899,1748656792402,-1217.0,0.00017808,2]
[363281900,1748656792426,-1408.16,0.00017808,2]
[363281901,1748656792449,-430.0,0.00017808,2]
[363281902,1748656792473,-311.9005216,0.00017808,2]
[363281903,1748656792497,-578.36443105,0.00017808,2]
[363281904,1748656792520,-430.0,0.00017808,2]
[363281905,1748656792544,-430.0,0.00017808,2]
[363281906,1748656792567,-1300.0,0.00017864,2]
[363281907,1748656792594,-331.31070161,0.000179,2]
[363281910,1748656994726,283.0,0.0002,120]
[363281912,1748657137817,197.903039,0.00013699,2]
[363281913,1748657366152,-184.83933637,0.00016338,2]
[363281914,1748657366174,-300.0,0.00016436,2]
[363281915,1748657366196,-300.0,0.00016436,2]
[363281916,1748657366218,-5000.0,0.00016437,2]
[363281917,1748657366238,-435.60604679,0.00016438,2]
[363281918,1748657366259,-430.0,0.00016438,2]
[363281919,1748657366281,-430.0,0.00016438,2]
[363281920,1748657366301,-319.13849696,0.00016438,2]
[363281921,1748657366327,-430.0,0.00016438,2]
[363281922,1748657366348,-430.0,0.00016438,2]
[363281923,1748657366370,-430.0,0.00016438,2]
[363281924,1748657366392,-430.0,0.00016438,2]
[363281925,1748657366412,-430.0,0.00016438,2]
[363281926,1748657366433,-430.0,0.00016438,2]
[363281927,1748657366453,-430.0,0.00016438,2]
[363281928,1748657366474,-441.56699266,0.00016438,2]
[363281929,1748657366495,-437.08163645,0.00016438,2]
[363281930,1748657366516,-52.53616683,0.00016438,2]
[363281966,1748657432362,-300.0,0.00016437,2]
[363281968,1748657432374,-388.34946353,0.00016438,2]
[363281970,1748657432383,-640.0,0.00016438,2]
[363281972,1748657432394,-1267.95,0.00016438,2]
[363281974,1748657432403,-430.0,0.00016438,2]
[363281976,1748657432413,-430.0,0.00016438,2]
[363281978,1748657432423,-430.0,0.00016438,2]
[363281980,1748657432436,-430.0,0.00016438,2]
[363281982,1748657432446,-430.0,0.00016438,2]
[363281984,1748657432456,-430.0,0.00016438,2]
[363281986,1748657432467,-430.0,0.00016438,2]
[363281988,1748657432479,-430.0,0.00016438,2]
[363281990,1748657432489,-604.05,0.00016438,2]
[363281992,1748657432499,-430.0,0.00016438,2]
[363281994,1748657432508,-1252.54,0.00016438,2]
[363281996,1748657432518,-1208.2,0.00016438,2]
[363281998,1748657432527,-20.35244279,0.00016438,2]
[363282000,1748657432539,-409.64755721,0.00016438,2]
[363282002,1748657432548,-430.0,0.00016438,2]
[363282004,1748657432557,-430.0,0.00016438,2]
[363282006,1748657432566,-430.0,0.00016438,2]
[363282009,1748657432575,-1485.08,0.00016438,2]
[363282012,1748657432585,-430.0,0.00016438,2]
[363282015,1748657432595,-164.66072821,0.00016438,2]
[363282059,1748657436049,-265.33927179,0.00016438,2]
[363282060,1748657436059,-430.0,0.00016438,2]
[363282061,1748657436068,-430.0,0.00016438,2]
[363282062,1748657436077,-779.43,0.00016438,2]
[363282063,1748657436087,-430.0,0.00016438,2]
[363282064,1748657436097,-430.0,0.00016438,2]
[363282065,1748657436106,-1041.81,0.00016438,2]
[363282066,1748657436116,-430.0,0.00016438,2]
[363282067,1748657436128,-388.40375621,0.00016438,2]
[363282085,1748657438305,-184.83933637,0.00016338,2]
[363282086,1748657438314,-41.59624379,0.00016438,2]
[363282087,1748657438324,-426.92834794,0.00016438,2]
[363282089,1748657438336,-3.07165206,0.00016438,2]
[363282091,1748657438348,-398.35592532,0.00016438,2]
[363282093,1748657438359,-31.64407468,0.00016438,2]
[363282095,1748657438369,-430.0,0.00016438,2]
[363282097,1748657438383,-430.0,0.00016438,2]
[363282099,1748657438392,-430.0,0.00016438,2]
[363282101,1748657438402,-430.0,0.00016438,2]
[363282103,1748657438412,-339.76094807,0.00016438,2]
[363282105,1748657438422,-430.0,0.00016438,2]
[363282107,1748657438432,-430.0,0.00016438,2]
[363282109,1748657438445,-816.65,0.00016438,2]
[363282111,1748657438454,-430.0,0.00016438,2]
[363282113,1748657438464,-430.0,0.00016438,2]
[363282115,1748657438473,-430.0,0.00016438,2]
[363282117,1748657438482,-430.0,0.00016438,2]
[363282119,1748657438491,-430.0,0.00016438,2]
[363282121,1748657438500,-430.0,0.00016438,2]
[363282123,1748657438510,-611.56,0.00016438,2]
[363282126,1748657438519,-430.0,0.00016438,2]
[363282128,1748657438529,-522.38,0.00016438,2]
[363282130,1748657438538,-430.0,0.00016438,2]
[363282132,1748657438547,-397.92,0.00016438,2]
[363282134,1748657438556,-486.04,0.00016438,2]
[363282136,1748657438565,-430.0,0.00016438,2]
[363282138,1748657438574,-565.13,0.00016438,2]
[363282140,1748657438583,-430.0,0.00016438,2]
[363282142,1748657438592,-576.03,0.00016438,2]
[363282144,1748657438601,-430.0,0.00016438,2]
[363282145,1748657438610,-1148.61,0.00016438,2]
[363282148,1748657438619,-430.0,0.00016712,2]
[363282149,1748657438631,-404.15739841,0.00016712,2]
[363282151,1748657438640,-257.41717826,0.00016712,2]
[363282153,1748657438650,-430.0,0.00016712,2]
[363282155,1748657438659,-640.0,0.00016712,2]
[363282157,1748657438668,-1267.95,0.00016712,2]
[363282159,1748657438678,-430.0,0.00016712,2]
[363282161,1748657438687,-430.0,0.00016712,2]
[363282163,1748657438696,-430.0,0.00016712,2]
[363282165,1748657438705,-430.0,0.00016712,2]
[363282167,1748657438715,-430.0,0.00016712,2]
[363282169,1748657438724,-430.0,0.00016712,2]
[363282171,1748657438734,-430.0,0.00016712,2]
[363282173,1748657438743,-430.0,0.00016712,2]
[363282175,1748657438753,-604.05,0.00016712,2]
[363282177,1748657438766,-1252.54,0.00016712,2]
[363282179,1748657438775,-1208.2,0.00016712,2]
[363282181,1748657438785,-430.0,0.00016712,2]
[363282183,1748657438795,-430.0,0.00016712,2]
[363282185,1748657438805,-430.0,0.00016712,2]
[363282187,1748657438820,-430.0,0.00016712,2]
[363282189,1748657438834,-1485.08,0.00016712,2]
[363282191,1748657438843,-430.0,0.00016712,2]
[363282193,1748657438852,-430.0,0.00016712,2]
[363282195,1748657438861,-430.0,0.00016712,2]
[363282197,1748657438870,-779.43,0.00016712,2]
[363282199,1748657438881,-430.0,0.00016712,2]
[363282201,1748657438890,-430.0,0.00016712,2]
[363282203,1748657438900,-1041.81,0.00016712,2]
[363282205,1748657438909,-430.0,0.00016712,2]
[363282207,1748657438918,-430.0,0.00016712,2]
[363282209,1748657438927,-430.0,0.00016712,2]
[363282211,1748657438937,-430.0,0.00016712,2]
[363282213,1748657438947,-430.0,0.00016712,2]
[363282215,1748657438955,-430.0,0.00016712,2]
[363282217,1748657438965,-430.0,0.00016712,2]
[363282219,1748657438974,-501.36465317,0.00016712,2]
[363282221,1748657438983,-430.0,0.00016712,2]
[363282223,1748657438993,-430.0,0.00016712,2]
[363282225,1748657439002,-816.65,0.00016712,2]
[363282227,1748657439011,-430.0,0.00016712,2]
[363282229,1748657439020,-430.0,0.00016712,2]
[363282231,1748657439029,-430.0,0.00016712,2]
[363282233,1748657439038,-430.0,0.00016712,2]
[363282234,1748657439047,-430.0,0.00016712,2]
[363282236,1748657439056,-346.91551838,0.00016712,2]
[363282238,1748657439065,-611.56,0.00016712,2]
[363282240,1748657439074,-430.0,0.00016712,2]
[363282242,1748657439083,-522.38,0.00016712,2]
[363282244,1748657439092,-430.0,0.00016712,2]
[363282261,1748657439233,-486.04,0.00016712,2]
[363282263,1748657439251,-430.0,0.00016712,2]
[363282265,1748657439260,-430.0,0.00016712,2]
[363282267,1748657439270,-430.0,0.00016712,2]
[363282269,1748657439279,-1148.61,0.00016712,2]
[363282271,1748657439288,-1100.0,0.00016768,2]
[363282273,1748657439297,-430.0,0.00016985,2]
[363282275,1748657439306,-430.0,0.00016985,2]
[363282277,1748657439316,-430.0,0.00016985,2]
[363282279,1748657439325,-162.97156676,0.00016985,2]
[363282281,1748657439335,-430.0,0.00016985,2]
[363282283,1748657439345,-578.7,0.00016985,2]
[363282285,1748657439355,-430.0,0.00016985,2]
[363282287,1748657439365,-430.0,0.00016985,2]
[363282289,1748657439374,-430.0,0.00016985,2]
[363282291,1748657439384,-430.0,0.00016986,2]
[363282293,1748657439393,-442.05823041,0.00016986,2]
[363282295,1748657439403,-640.0,0.00016986,2]
[363282296,1748657439412,-1267.95,0.00016986,2]
[363282298,1748657439422,-430.0,0.00016986,2]
[363282300,1748657439432,-430.0,0.00016986,2]
[363282302,1748657439442,-430.0,0.00016986,2]
[363282304,1748657439451,-488.08,0.00016986,2]
[363282306,1748657439460,-430.0,0.00016986,2]
[363282307,1748657439469,-430.0,0.00016986,2]
[363282308,1748657439479,-430.0,0.00016986,2]
[363282309,1748657439489,-430.0,0.00016986,2]
[363282310,1748657439498,-604.05,0.00016986,2]
[363282311,1748657439507,-1252.54,0.00016986,2]